[Event "French Top 16-A 2024"]
[Site "Chartres"]
[Date "2024.06.01"]
[Round "1.4"]
[White "Bailet, Pierre"]
[Black "Cornette, Matthieu"]
[Result "1/2-1/2"]
[ECO "C70"]
[WhiteElo "2492"]
[BlackElo "2568"]
[Annotator "RC"]
[PlyCount "142"]
[EventDate "2024.06.01"]
[EventType "team-tourn"]
[EventCountry "FRA"]
[SourceTitle "playchess.com"]
[Source "ChessBase"]
[SourceQuality "1"]
[TimeControl "40/5400+30:1800+30"]

1. e4 {[%emt 0:00:08]} e5 {[%emt 0:00:19]} 2. Nf3 {[%emt 0:00:18]} Nc6 {[%emt 0:00:04]} 3. Bb5 {[%emt 0:00:11]} a6 {[%emt 0:00:19]} 4. Ba4 {[%emt 0:00:10]} Nge7 {[%emt 0:00:52]} 5. Nc3 {[%emt 0:06:16]} Ng6 {[%emt 0:01:05]} 6. d4 {[%emt 0:16:02]} exd4 {[%emt 0:00:48]} 7. Nxd4 {[%emt 0:00:15]} Nxd4 {[%emt 0:01:09]} 8. Qxd4 {[%emt 0:00:12]} b5 {[%emt 0:00:46]} 9. Bb3 {[%emt 0:00:14]} Bb7 {[%emt 0:00:43]} 10. Qe3 {[%emt 0:05:32]} Bd6 {[%emt 0:03:28]} 11. O-O {[%emt 0:05:32]} O-O {[%emt 0:00:38]} 12. Qg5 {[%emt 0:21:54]} Be5 {[%emt 0:12:43]} 13. Qxd8 {[%emt 0:05:22]} Raxd8 {[%emt 0:01:17]} 14. Rd1 {[%emt 0:07:29]} Kh8 {[%emt 0:04:03]} 15. a4 {[%emt 0:08:08]} Bxc3 {[%emt 0:16:02]} 16. bxc3 {[%emt 0:00:07]} Bxe4 {[%emt 0:00:04]} 17. axb5 {[%emt 0:00:08]} axb5 {[%emt 0:00:05]} 18. f3 {[%emt 0:00:18]} Bc6 {[%emt 0:10:57]} 19. Ra7 {[%emt 0:00:33]} Rc8 {[%emt 0:00:31]} 20. Bd5 {[%emt 0:11:37]} Ne7 {[%emt 0:20:06]} 21. Bxc6 {[%emt 0:01:05]} dxc6 {[%emt 0:00:04]} 22. c4 {[%emt 0:00:49]} bxc4 {[%emt 0:16:40]} 23. Ba3 {[%emt 0:00:23]} Rfe8 {[%emt 0:00:15]} 24. Bxe7 {[%emt 0:00:37]} Rxe7 {[%emt 0:00:02]} 25. Ra4 {[%emt 0:03:27]} g6 {[%emt 0:00:31]} 26. Rxc4 {[%emt 0:00:21]} Re6 {[%emt 0:09:59]} 27. Rd7 {[%emt 0:01:11]} Kg7 {[%emt 0:00:00]} 28. Rf4 {[%emt 0:00:34]} Rf6 {[%emt 0:00:00]} 29. Rc4 {[%emt 0:03:08]} Rd6 {[%emt 0:00:00]} 30. Re7 {[%emt 0:00:05]} Kf6 {[%emt 0:00:00]} 31. Re3 {[%emt 0:00:10]} Rcd8 {[%emt 0:00:00]} 32. Rf4+ {[%emt 0:01:29]} Kg7 {[%emt 0:00:00]} 33. Re7 {[%emt 0:00:23]} Rf6 {[%emt 0:00:00]} 34. Rc4 {[%emt 0:01:39]} Rc8 {[%emt 0:01:43]} 35. h4 {[%emt 0:01:00]} Kf8 {[%emt 0:00:16]} 36. Rd7 {[%emt 0:00:45]} Rd6 {[%emt 0:00:34]} 37. Rd4 {[%emt 0:00:28]} Rxd7 {[%emt 0:00:29]} 38. Rxd7 {[%emt 0:00:04]} Ke8 {[%emt 0:00:02]} 39. Rd4 {[%emt 0:00:32]} Rd8 {[%emt 0:00:54]} 40. Rc4 {[%emt 0:00:25]} Rd1+ {[%emt 0:00:23]} 41. Kf2 {[%emt 0:30:39]} Rd2+ {[%emt 0:32:22]} 42. Ke3 {[%emt 0:00:00]} Rxg2 {[%emt 0:00:00]} 43. Rxc6 {[%emt 0:00:00]} Kd8 {[%emt 0:00:00]} 44. Rf6 {[%emt 0:00:00]} Rh2 {[%emt 0:00:00]} 45. Rxf7 {[%emt 0:00:00]} Rxh4 {[%emt 0:00:00]} 46. f4 {[%emt 0:00:00]} Rh5 {[%emt 0:00:00]} 47. Kd4 {[%emt 0:00:00]} Kc8 {[%emt 0:00:00]} 48. c4 {[%emt 0:00:00]} Kb7 {[%emt 0:00:00]} 49. c5 {[%emt 0:00:00]} Rh1 {[%emt 0:00:00]} 50. f5 {[%emt 0:00:00]} Rh4+ {[%emt 0:00:00]} 51. Kd3 {[%emt 0:02:02]} gxf5 {[%emt 0:00:00]} 52. Rxf5 {[%emt 0:00:09]} Kc6 {[%emt 0:00:00]} 53. Rf7 {[%emt 0:01:45]} h5 {[%emt 0:00:00]} 54. Rh7 {[%emt 0:00:22]} Rh1 {[%emt 0:00:00]} 55. Kc4 {[%emt 0:00:50]} h4 {[%emt 0:00:00]} 56. Rh6+ {[%emt 0:00:06]} Kb7 {[%emt 0:00:00]} 57. Kb3 {[%emt 0:01:18]} h3 {[%emt 0:00:00]} 58. Kc3 {[%emt 0:00:33]} c6 {[%emt 0:03:05]} 59. Kb2 {[%emt 0:00:06]} Kc7 {[%emt 0:00:53]} 60. Rh7+ {[%emt 0:00:19]} Kd8 {[%emt 0:00:12]} 61. Rh6 {[%emt 0:01:06]} Kd7 {[%emt 0:01:48]} 62. Ka2 {[%emt 0:00:05]} Kc7 {[%emt 0:01:38]} 63. Kb2 {[%emt 0:00:08]} Kb7 {[%emt 0:00:03]} 64. Ka2 {[%emt 0:00:18]} Ka6 {[%emt 0:02:17]} 65. Rxc6+ {[%emt 0:01:09]} Kb5 {[%emt 0:00:01]} 66. Rb6+ {[%emt 0:02:03]} Kc4 {[%emt 0:01:59]} 67. c6 {[%emt 0:00:35]} h2 {[%emt 0:00:23]} 68. c7 {[%emt 0:00:19]} Ra1+ {[%emt 0:00:19]} 69. Kb2 {[%emt 0:00:07]} Ra8 {[%emt 0:01:02]} 70. Rh6 {[%emt 0:00:09]} Rc8 {[%emt 0:00:15]} 71. Rxh2 {[%emt 0:00:08]} Kd5 {[%emt 0:01:52]} 1/2-1/2

[Event "French Top 16-A 2024"]
[Site "Chartres"]
[Date "2024.06.01"]
[Round "1.4"]
[White "Bonte, Andrei-Mihai"]
[Black "Gharamian, Tigran"]
[Result "0-1"]
[ECO "E40"]
[WhiteElo "2270"]
[BlackElo "2588"]
[Annotator "RC"]
[PlyCount "94"]
[EventDate "2024.06.01"]
[EventType "team-tourn"]
[EventCountry "FRA"]
[SourceTitle "playchess.com"]
[Source "ChessBase"]
[SourceQuality "1"]
[TimeControl "40/5400+30:1800+30"]

1. d4 {[%emt 0:00:04]} Nf6 {[%emt 0:00:06]} 2. c4 {[%emt 0:00:05]} e6 {[%emt 0:00:06]} 3. Nc3 {[%emt 0:00:19]} Bb4 {[%emt 0:00:08]} 4. e3 {[%emt 0:00:11]} Bxc3+ {[%emt 0:00:07]} 5. bxc3 {[%emt 0:00:05]} b6 {[%emt 0:00:04]} 6. e4 {[%emt 0:04:37]} Nxe4 {[%emt 0:08:11]} 7. Qg4 {[%emt 0:01:39]} f5 {[%emt 0:00:45]} 8. Qxg7 {[%emt 0:10:33]} Qf6 {[%emt 0:00:28]} 9. Qxf6 {[%emt 0:00:06]} Nxf6 {[%emt 0:00:05]} 10. Bf4 {[%emt 0:00:53]} d6 {[%emt 0:00:57]} 11. Nf3 {[%emt 0:02:29]} Bb7 {[%emt 0:14:50]} 12. Nd2 {[%emt 0:03:02]} Rg8 {[%emt 0:03:13]} 13. f3 {[%emt 0:00:53]} Nc6 {[%emt 0:00:29]} 14. Be3 {[%emt 0:02:09]} Kf7 {[%emt 0:21:32]} 15. Kf2 {[%emt 0:05:25]} e5 {[%emt 0:00:14]} 16. Nb3 {[%emt 0:00:56]} Ne7 {[%emt 0:03:49]} 17. c5 {[%emt 0:19:34]} e4 {[%emt 0:05:26]} 18. Bc4+ {[%emt 0:22:24]} Ned5 {[%emt 0:04:48]} 19. Rae1 {[%emt 0:08:17]} b5 {[%emt 0:09:23]} 20. Bxd5+ {[%emt 0:03:41]} Bxd5 {[%emt 0:02:51]} 21. Bf4 {[%emt 0:01:22]} Nh5 {[%emt 0:03:22]} 22. Bd2 {[%emt 0:04:13]} a5 {[%emt 0:02:22]} 23. Rhg1 {[%emt 0:01:24]} a4 {[%emt 0:02:49]} 24. Nc1 {[%emt 0:00:12]} a3 {[%emt 0:00:05]} 25. g4 {[%emt 0:03:31]} Nf6 {[%emt 0:00:27]} 26. g5 {[%emt 0:00:19]} Nd7 {[%emt 0:00:42]} 27. cxd6 {[%emt 0:01:28]} cxd6 {[%emt 0:00:08]} 28. fxe4 {[%emt 0:00:32]} fxe4 {[%emt 0:01:32]} 29. Bf4 {[%emt 0:00:48]} Ke6 {[%emt 0:01:04]} 30. Ke3 {[%emt 0:03:25]} Raf8 {[%emt 0:01:58]} 31. Rgf1 {[%emt 0:00:11]} Rf7 {[%emt 0:06:59]} 32. Bg3 {[%emt 0:00:56]} Rxf1 {[%emt 0:01:24]} 33. Rxf1 {[%emt 0:00:01]} Rxg5 {[%emt 0:00:09]} 34. Ne2 {[%emt 0:00:18]} Nb6 {[%emt 0:00:25]} 35. Nf4+ {[%emt 0:00:28]} Kd7 {[%emt 0:00:04]} 36. Nxd5 {[%emt 0:01:24]} Nxd5+ {[%emt 0:00:17]} 37. Kd2 {[%emt 0:00:25]} h5 {[%emt 0:04:49]} 38. Rf7+ {[%emt 0:00:04]} Kc6 {[%emt 0:00:25]} 39. Rh7 {[%emt 0:00:26]} Rf5 {[%emt 0:01:20]} 40. Ra7 {[%emt 0:01:06]} Nb6 {[%emt 0:01:04]} 41. Kc2 {[%emt 0:05:59]} Nc4 {[%emt 0:01:04]} 42. Re7 {[%emt 0:05:47]} Rf1 {[%emt 0:01:26]} 43. Rxe4 {[%emt 0:03:28]} Ra1 {[%emt 0:00:09]} 44. Re1 {[%emt 0:09:40]} Rxa2+ {[%emt 0:00:26]} 45. Kd3 {[%emt 0:00:09]} Kd5 {[%emt 0:02:52]} 46. Bf4 {[%emt 0:00:37]} Rf2 {[%emt 0:00:09]} 47. Rb1 {[%emt 0:01:18]} a2 {[%emt 0:00:54]} 0-1

[Event "French Top 16-A 2024"]
[Site "Chartres"]
[Date "2024.06.01"]
[Round "1.5"]
[White "Moussard, Jules"]
[Black "Barseghyan, Harutyun"]
[Result "1/2-1/2"]
[ECO "B12"]
[WhiteElo "2611"]
[BlackElo "2431"]
[Annotator "TA"]
[PlyCount "136"]
[EventDate "2024.06.01"]
[EventType "team-tourn"]
[EventCountry "FRA"]
[SourceTitle "playchess.com"]
[Source "ChessBase"]
[SourceQuality "1"]
[TimeControl "40/5400+30:1800+30"]

{[%evp 40,136,85,31,24,12,57,55,80,58,63,63,54,62,67,69,68,75,82,87,75,75,75,75,78,78,79,79,84,60,64,63,62,54,54,62,110,104,99,99,98,105,97,97,97,97,99,106,187,154,169,162,162,90,90,90,90,90,90,90,90,90,336,336,1003,464,1793,1543,1813,498,125,98,98,8,8,8,8,8,8,0,0,0,0,0,0,0,0,0,0,0,0,0,0,0,0,0,0,0,0]} 1. e4 {[%emt 0:01:21]} c6 {[%emt 0:00:09]} 2. d4 {[%emt 0:00:07]} d5 {[%emt 0:00:06]} 3. e5 {[%emt 0:00:05]} Bf5 {[%emt 0:00:30]} 4. Nd2 {[%emt 0:00:12]} e6 {[%emt 0:01:49]} 5. Nb3 {[%emt 0:00:07]} Nd7 {[%emt 0:05:54]} 6. Nf3 {[%emt 0:00:43]} a6 {[%emt 0:02:44]} 7. Be3 {[%emt 0:03:20]} Rc8 {[%emt 0:02:50]} 8. c3 {[%emt 0:08:34]} c5 {[%emt 0:04:50]} 9. Be2 {[%emt 0:11:59]} c4 {[%emt 0:13:37]} 10. Nbd2 {[%emt 0:00:52]} f6 {[%emt 0:02:25]} 11. O-O {[%emt 0:04:47]} Bg6 {[%emt 0:02:04]} 12. b3 {[%emt 0:04:58]} cxb3 {[%emt 0:03:05]} 13. Qxb3 {[%emt 0:07:07]} Qb6 {[%emt 0:00:18]} 14. c4 {[%emt 0:00:24]} Qxb3 {[%emt 0:00:06]} 15. axb3 {[%emt 0:00:09]} Ne7 {[%emt 0:02:41]} 16. Rfc1 {[%emt 0:04:46]} Nc6 {[%emt 0:08:51]} 17. cxd5 {[%emt 0:07:55]} exd5 {[%emt 0:00:22]} 18. exf6 {[%emt 0:06:17]} gxf6 {[%emt 0:04:13]} 19. Nh4 {[%emt 0:00:40]} Bd6 {[%emt 0:20:01]} 20. Bg4 {[%emt 0:01:47]} Ne7 {[%emt 0:00:37]} 21. Nf1 {[%emt 0:12:10]} ({Better is} 21. Rxc8+ $16 Nxc8 22. Nf1) 21... Rxc1 $14 {[%emt 0:02:13]} 22. Rxc1 {[%emt 0:01:18]} Nf8 {[%emt 0:02:23]} 23. Ng3 {[%emt 0:01:46]} Kf7 {[%emt 0:01:38]} 24. Ngf5 {[%emt 0:08:36]} Nxf5 {[%emt 0:00:19]} 25. Nxf5 {[%emt 0:00:04]} Bxf5 {[%emt 0:00:09]} 26. Bxf5 {[%emt 0:00:02]} Ne6 {[%emt 0:00:14]} 27. h4 {[%emt 0:01:43]} h5 {[%emt 0:00:54]} 28. g3 {[%emt 0:00:38]} Bb8 {[%emt 0:01:56]} 29. Kf1 {[%emt 0:00:20]} Re8 {[%emt 0:01:14]} 30. Bh3 {[%emt 0:01:05]} Ba7 {[%emt 0:00:43]} 31. Bg2 {[%emt 0:01:16]} Rd8 {[%emt 0:00:19]} 32. Rd1 {[%emt 0:00:28]} Kg6 {[%emt 0:01:14]} 33. Ke2 {[%emt 0:01:53]} Ng7 {[%emt 0:02:58]} 34. Rc1 {[%emt 0:02:13]} Bb6 {[%emt 0:00:18]} 35. Kd3 {[%emt 0:00:03]} Nf5 {[%emt 0:00:07]} 36. Bf3 {[%emt 0:00:37]} Nxe3 {[%emt 0:04:24]} 37. Kxe3 {[%emt 0:02:40]} Rd6 {[%emt 0:09:56]} (37... f5 $14 {was preferrable.}) 38. Rc8 $16 {[%emt 0:05:05]} Bd8 {[%emt 0:00:05]} 39. Rc5 {[%emt 0:01:10]} b6 {[%emt 0:01:04]} 40. Rxd5 {[%emt 0:00:36]} Rxd5 {[%emt 0:00:08]} 41. Bxd5 {[%emt 0:30:07]} f5 {[%emt 0:30:25]} 42. Bb7 {[%emt 0:00:31]} a5 {[%emt 0:00:07]} 43. Bc6 {[%emt 0:00:03]} Kf7 {[%emt 0:00:00]} (43... Bc7 $16 {was worth a try.}) 44. Kf4 {[%emt 0:00:00]} Bf6 {[%emt 0:00:00]} 45. d5 {[%emt 0:00:00]} ({Much weaker is} 45. Kxf5 Bxd4 46. f3 Bf2 $11) 45... Bd4 {[%emt 0:00:00] [#]} 46. Kxf5 {[%emt 0:00:00]} (46. d6 $1 $18 Kf6 47. d7 Be5+ 48. Ke3) 46... Bxf2 $16 {[%emt 0:00:00]} 47. g4 {[%emt 0:00:00]} hxg4 {[%emt 0:00:00]} 48. Kxg4 {[%emt 0:00:00]} Ke7 {[%emt 0:00:00]} 49. h5 {[%emt 0:00:00]} Be3 {[%emt 0:00:00]} 50. Kf5 {[%emt 0:00:00]} Bd4 $2 {[%emt 0:00:00]} (50... Kd6 $16 {is a better defense.}) 51. Kg6 $18 {[%emt 0:00:00]} Be5 $2 {[%emt 0:00:00]} (51... Bc3 52. h6 Kd6) 52. h6 $18 {[%emt 0:00:00]} Bd4 {[%emt 0:00:00]} (52... Kd6 $142 53. Kf7 Bb2) 53. Kh7 {[%emt 0:00:00]} Kd6 {[%emt 0:00:00]} 54. Kg8 {[%emt 0:00:00]} Kc5 {[%emt 0:00:00]} 55. h7 {[%emt 0:00:00]} Be5 {[%emt 0:00:17]} 56. h8=Q {[%emt 0:00:00]} ({But not} 56. h8=R $6 Bxh8 57. Kxh8 b5 $11) (56. Kf7 $16 {Strongly threatening Ke7.} Kd6 57. Kg6) 56... Bxh8 $11 {[%emt 0:00:14]} 57. Kxh8 {[%emt 0:00:00]} b5 {[%emt 0:00:10]} 58. Be8 {[%emt 0:00:00]} a4 $1 {[%emt 0:00:18]} 59. b4+ {[%emt 0:05:58]} (59. bxa4 {simplifies} bxa4 60. Bxa4 Kxd5 61. Kg8) 59... Kxd5 {[%emt 0:00:28]} 60. Bxb5 {[%emt 0:00:03]} a3 {[%emt 0:00:12]} 61. Be8 {[%emt 0:00:09]} Kc4 {[%emt 0:00:28]} (61... a2 $5 62. Bf7+ $8 Kc6 63. Bxa2 Kb5 $11) 62. b5 {[%emt 0:00:06]} Kc5 {[%emt 0:00:18]} (62... Kb4 $5 63. Bf7 $8 a2 64. Bxa2 Kxb5 $11) 63. Bf7 {[%emt 0:00:05]} Kxb5 {[%emt 0:00:05]} 64. Kg8 {[%emt 0:00:02]} Kb4 {[%emt 0:00:08]} 65. Kg7 {[%emt 0:00:03]} Kc3 {[%emt 0:00:04]} 66. Kh8 {[%emt 0:00:03]} Kb2 {[%emt 0:00:04]} 67. Kg7 {[%emt 0:00:02]} a2 {[%emt 0:00:05]} 68. Bxa2 $1 {[%emt 0:00:02]} Kxa2 {[%emt 0:00:06]} 1/2-1/2

[Event "French Top 16-A 2024"]
[Site "Chartres"]
[Date "2024.06.01"]
[Round "1.5"]
[White "Hamdouchi, Hicham"]
[Black "Saya, Ethan"]
[Result "1-0"]
[ECO "B40"]
[WhiteElo "2528"]
[BlackElo "2234"]
[Annotator "TA"]
[PlyCount "83"]
[EventDate "2024.06.01"]
[EventType "team-tourn"]
[EventCountry "FRA"]
[SourceTitle "playchess.com"]
[Source "ChessBase"]
[SourceQuality "1"]
[TimeControl "40/5400+30:1800+30"]

{[%evp 9,83,8,10,-11,35,28,60,73,75,75,67,36,61,66,69,53,60,50,54,60,58,60,145,137,150,140,143,135,132,125,136,115,109,89,95,87,92,74,75,57,99,112,115,108,98,103,121,62,79,50,68,62,70,51,72,58,102,73,110,99,374,374,512,415,396,340,483,271,302,229,1120,548,685,640,6077,5899]} 1. e4 {[%emt 0:00:04]} e6 {[%emt 0:00:09]} 2. d3 {[%emt 0:00:06]} c5 {[%emt 0:03:43]} 3. Nf3 {[%emt 0:00:35][%cal Bg1f3,Bf3d2,Bd2e4][%mdl 32]} Nc6 {[%emt 0:00:20]} 4. g3 {[%emt 0:00:48]} Nge7 {[%emt 0:00:38]} 5. Bg2 {[%emt 0:04:06]} g6 {[%emt 0:00:26]} 6. d4 {[%emt 0:01:41]} Bg7 {[%emt 0:05:59]} (6... cxd4 $11 {should be considered.} 7. Nxd4 Bg7 8. Nxc6 bxc6) 7. d5 $14 {[%emt 0:02:20]} Nd4 {[%emt 0:01:13]} 8. Nfd2 {[%emt 0:04:16] White is slightly better.} exd5 {[%emt 0:03:11]} 9. exd5 {[%emt 0:00:49]} O-O {[%emt 0:00:51]} 10. c3 {[%emt 0:00:56]} Nb5 {[%emt 0:04:28]} 11. Ne4 {[%emt 0:06:42][%cal Oa2a4] [#] Threatens to win with a4!} d6 {[%emt 0:00:58]} 12. Bf4 {[%emt 0:02:36]} Bf5 {[%emt 0:06:59]} 13. O-O {[%emt 0:01:19]} a6 {[%emt 0:06:36]} 14. a4 {[%emt 0:06:33]} Bxe4 {[%emt 0:00:37]} 15. Bxe4 {[%emt 0:00:08]} Na7 {[%emt 0:00:21]} (15... Nc7 $14) 16. Nd2 $16 {[%emt 0:02:14]} b6 {[%emt 0:04:20]} 17. Nc4 {[%emt 0:04:52]} Nac8 {[%emt 0:00:21][%cal Ba7c8,Bc8b6,Bb6a4][%mdl 32]} 18. h4 {[%emt 0:01:07][%cal Bh2h4,Bh4h5][%mdl 32]} Rb8 {[%emt 0:04:24] Black is weak on the light squares} 19. Re1 {[%emt 0:11:25] White has more active pieces.} Qc7 {[%emt 0:02:53]} 20. h5 {[%emt 0:04:01]} b5 {[%emt 0:02:03]} 21. axb5 {[%emt 0:00:15]} axb5 {[%emt 0:00:06]} 22. Ne3 {[%emt 0:02:07]} Nb6 {[%emt 0:02:59]} 23. hxg6 {[%emt 0:03:29]} hxg6 {[%emt 0:02:10]} 24. Bf3 {[%emt 0:00:33][%cal Be4f3,Bf3e2,Be2g4][%mdl 32]} Na4 {[%emt 0:10:43]} 25. Qd2 {[%emt 0:02:42]} Rbe8 {[%emt 0:10:08]} 26. Be2 {[%emt 0:05:19]} Qd7 {[%emt 0:02:09]} 27. Bg4 {[%emt 0:04:22]} Qc7 {[%emt 0:04:51] [#]} 28. Nc4 {[%emt 0:03:33]} Nc8 $1 $14 {[%emt 0:01:59]} 29. Bxc8 {[%emt 0:03:28]} (29. Na3 $5 Rxe1+ 30. Rxe1 $16) 29... Rxe1+ {[%emt 0:00:56]} 30. Qxe1 {[%emt 0:01:04]} bxc4 {[%emt 0:00:08]} 31. Rxa4 {[%emt 0:00:26]} Rxc8 {[%emt 0:00:11]} 32. Rxc4 {[%emt 0:01:07]} Qb6 {[%emt 0:01:59][%cal Ob6b3]} 33. Qe2 {[%emt 0:03:37]} Ra8 {[%emt 0:07:09]} 34. Re4 $36 {[%emt 0:01:48][%mdl 2048] aiming for Re8+. White is really pushing.} Kh7 $2 {[%emt 0:02:39][%mdl 8192] A mistake that costs the game.} (34... Bf6 $16 {was necessary.} 35. Re8+ Rxe8 36. Qxe8+ Kg7) 35. Re7 $18 {[%emt 0:03:59]} Ra1+ {[%emt 0:00:23]} 36. Kh2 {[%emt 0:02:14]} Qb3 {[%emt 0:01:38]} 37. Qf3 {[%emt 0:02:00]} ({Weaker is} 37. Bxd6 Qxd5 38. Qe4 Qxd6 $17) 37... Rd1 {[%emt 0:03:12]} (37... Qd1 $142 38. Qxd1 Rxd1) 38. Rxf7 {[%emt 0:05:46]} ({Less strong is} 38. Bxd6 Qxd5 39. Qxd5 (39. Qxf7 $2 Qh1#) 39... Rxd5 $18) (38. Bd2 $142 Rxd2 39. Qxf7 Rxf2+ 40. Qxf2 Qxd5 41. Qf6 Qh5+ 42. Qh4) 38... Rxd5 {[%emt 0:00:45]} 39. g4 {[%emt 0:01:48] Dodges Rh5+} Qc4 $2 {[%emt 0:04:45]} (39... Rh5+ 40. gxh5 Qxf7) 40. Rd7 {[%emt 0:03:28]} (40. Rc7 $142) 40... Rd3 {[%emt 0:00:38]} 41. Be3 {[%emt 0:30:41] Intending Qf6 and mate.} Qd5 {[%emt 0:08:54]} 42. Qf6 {[%emt 0:00:00] Weighted Error Value: White=0.41/Black=0.38.  Loses game:     	---       	Black=1      Mistake:       	White=3     	Black=4      Inaccurate:     	White=2     	Black=6      OK:         	White=12    	Black=9      Best:        	White=1     	Black=1      Strong:       	---       	Black=1} 1-0

[Event "French Top 16-A 2024"]
[Site "Chartres"]
[Date "2024.06.01"]
[Round "1.6"]
[White "Vitoux, Colomban"]
[Black "Goldsztejn, Gildas"]
[Result "1/2-1/2"]
[ECO "B50"]
[WhiteElo "2374"]
[BlackElo "2412"]
[Annotator "RC"]
[PlyCount "95"]
[EventDate "2024.06.01"]
[EventType "team-tourn"]
[EventCountry "FRA"]
[SourceTitle "playchess.com"]
[Source "ChessBase"]
[SourceQuality "1"]
[TimeControl "40/5400+30:1800+30"]

1. e4 {[%emt 0:00:06]} c5 {[%emt 0:00:10]} 2. Nf3 {[%emt 0:00:45]} d6 {[%emt 0:00:09]} 3. c3 {[%emt 0:02:05]} Nf6 {[%emt 0:01:29]} 4. Be2 {[%emt 0:00:39]} g6 {[%emt 0:02:05]} 5. O-O {[%emt 0:00:16]} Bg7 {[%emt 0:00:06]} 6. Re1 {[%emt 0:01:46]} O-O {[%emt 0:00:48]} 7. Bf1 {[%emt 0:00:34]} Nc6 {[%emt 0:01:53]} 8. h3 {[%emt 0:05:42]} e5 {[%emt 0:00:36]} 9. d3 {[%emt 0:06:25]} d5 {[%emt 0:02:07]} 10. Nbd2 {[%emt 0:00:25]} Re8 {[%emt 0:06:16]} 11. Qc2 {[%emt 0:00:15]} h6 {[%emt 0:03:10]} 12. a3 {[%emt 0:02:24]} a5 {[%emt 0:11:06]} 13. a4 {[%emt 0:00:58]} Be6 {[%emt 0:00:46]} 14. g3 {[%emt 0:03:46]} Rc8 {[%emt 0:07:10]} 15. Kh2 {[%emt 0:03:45]} c4 {[%emt 0:07:23]} 16. dxc4 {[%emt 0:22:52]} dxe4 {[%emt 0:00:08]} 17. Nh4 {[%emt 0:02:11]} Qb6 {[%emt 0:05:33]} 18. Nb3 {[%emt 0:15:49]} Ne7 {[%emt 0:22:06]} 19. Be3 {[%emt 0:03:00]} Qc7 {[%emt 0:00:09]} 20. Nc5 {[%emt 0:01:37]} Bf5 {[%emt 0:00:08]} 21. b4 {[%emt 0:04:16]} axb4 {[%emt 0:02:16]} 22. cxb4 {[%emt 0:00:08]} b6 {[%emt 0:00:54]} 23. Na6 {[%emt 0:00:46]} Qb7 {[%emt 0:00:29]} 24. b5 {[%emt 0:01:02]} g5 {[%emt 0:05:53]} 25. Ng2 {[%emt 0:04:15]} Nd7 {[%emt 0:03:29]} 26. a5 {[%emt 0:02:29]} Bg6 {[%emt 0:05:24]} 27. axb6 {[%emt 0:04:48]} f5 {[%emt 0:01:15]} 28. c5 {[%emt 0:01:55]} f4 {[%emt 0:00:33]} 29. c6 {[%emt 0:00:23]} Nxc6 {[%emt 0:00:59]} 30. bxc6 {[%emt 0:06:13]} Rxc6 {[%emt 0:00:20]} 31. Bc4+ {[%emt 0:01:16]} Kh7 {[%emt 0:01:08]} 32. Bd5 {[%emt 0:00:47]} Rxc2 {[%emt 0:00:09]} 33. Bxb7 {[%emt 0:00:04]} fxe3 {[%emt 0:00:07]} 34. Nxe3 {[%emt 0:00:25]} Rxf2+ {[%emt 0:03:57]} 35. Kg1 {[%emt 0:00:01]} Rf3 {[%emt 0:00:07]} 36. Bc6 {[%emt 0:00:35]} Nxb6 {[%emt 0:00:18]} 37. Bxe8 {[%emt 0:00:20]} Bxe8 {[%emt 0:00:01]} 38. Kg2 {[%emt 0:02:00]} Nd7 {[%emt 0:05:29]} 39. Nc7 {[%emt 0:00:49]} Bf7 {[%emt 0:00:23]} 40. Ra7 {[%emt 0:01:25]} Nf6 {[%emt 0:02:10]} 41. g4 {[%emt 0:09:06]} h5 {[%emt 0:07:21]} 42. Nf5 {[%emt 0:03:11]} hxg4 {[%emt 0:03:02]} 43. hxg4 {[%emt 0:00:39]} Nxg4 {[%emt 0:06:42]} 44. Nxg7 {[%emt 0:08:00]} Kxg7 {[%emt 0:01:54]} 45. Rxe4 {[%emt 0:00:07]} Rf4 {[%emt 0:00:04]} 46. Ne6+ {[%emt 0:01:17]} Kf6 {[%emt 0:00:06]} 47. Nxf4 {[%emt 0:00:57]} gxf4 {[%emt 0:00:04]} 48. Rxf4+ {[%emt 0:10:26]} 1/2-1/2